fUSD/lending_fUSD_20260227
["ID","MTS","AMOUNT","RATE_DAILY","PERIOD"]
[406852418,1772235031972,-500.0,7.718e-05,2]
[406852420,1772235031981,-500.0,7.718e-05,2]
[406852422,1772235031990,-500.0,7.718e-05,2]
[406852424,1772235031999,-500.0,7.718e-05,2]
[406852426,1772235032008,-500.0,7.718e-05,2]
[406852428,1772235032017,-500.0,7.718e-05,2]
[406852429,1772235032027,-500.0,7.718e-05,2]
[406852430,1772235032037,-500.0,7.718e-05,2]
[406852431,1772235032046,-500.0,7.718e-05,2]
[406852432,1772235032055,-500.0,7.718e-05,2]
[406852433,1772235032065,-500.0,7.718e-05,2]
[406852434,1772235032074,-500.0,7.718e-05,2]
[406852435,1772235032083,-500.0,7.718e-05,2]
[406852436,1772235032093,-500.0,7.718e-05,2]
[406852437,1772235032102,-500.0,7.718e-05,2]
[406852438,1772235032111,-500.0,7.718e-05,2]
[406852440,1772235032120,-500.0,7.718e-05,2]
[406852442,1772235032129,-500.0,7.718e-05,2]
[406852444,1772235032138,-500.0,7.718e-05,2]
[406852446,1772235032147,-500.0,7.718e-05,2]
[406852448,1772235032156,-500.0,7.718e-05,2]
[406852450,1772235032165,-463.96144905,7.718e-05,2]
[406852452,1772235032174,-500.0,7.718e-05,2]
[406852454,1772235032183,-500.0,7.718e-05,2]
[406852456,1772235032192,-500.0,7.718e-05,2]
[406852458,1772235032201,-500.0,7.718e-05,2]
[406852460,1772235032210,-500.0,7.718e-05,2]
[406852462,1772235032219,-500.0,7.718e-05,2]
[406852464,1772235032228,-500.0,7.718e-05,2]
[406852466,1772235032237,-500.0,7.718e-05,2]
[406852468,1772235032249,-500.0,7.718e-05,2]
[406852470,1772235032258,-500.0,7.718e-05,2]
[406852472,1772235032267,-500.0,7.718e-05,2]
[406852474,1772235032276,-500.0,7.718e-05,2]
[406852476,1772235032286,-500.0,7.718e-05,2]
[406852478,1772235032295,-500.0,7.718e-05,2]
[406852480,1772235032304,-500.0,7.718e-05,2]
[406852482,1772235032313,-500.0,7.718e-05,2]
[406852484,1772235032322,-500.0,7.718e-05,2]
[406852486,1772235032331,-500.0,7.718e-05,2]
[406852488,1772235032340,-500.0,7.718e-05,2]
[406852490,1772235032350,-500.0,7.718e-05,2]
[406852492,1772235032360,-156.3961449,7.718e-05,2]
[406852494,1772235032369,-500.0,7.718e-05,2]
[406852496,1772235032378,-500.0,7.718e-05,2]
[406852498,1772235032387,-500.0,7.718e-05,2]
[406852500,1772235032397,-500.0,7.718e-05,2]
[406852502,1772235032406,-500.0,7.718e-05,2]
[406852504,1772235032415,-500.0,7.718e-05,2]
[406852505,1772235032424,-500.0,7.718e-05,2]
[406852506,1772235032433,-500.0,7.718e-05,2]
[406852507,1772235032442,-500.0,7.718e-05,2]
[406852508,1772235032452,-500.0,7.718e-05,2]
[406852509,1772235032462,-500.0,7.718e-05,2]
[406852510,1772235032472,-500.0,7.718e-05,2]
[406852511,1772235032481,-500.0,7.718e-05,2]
[406852512,1772235032491,-500.0,7.718e-05,2]
[406852513,1772235032500,-500.0,7.718e-05,2]
[406852514,1772235032509,-500.0,7.718e-05,2]
[406852515,1772235032519,-500.0,7.718e-05,2]
[406852516,1772235032528,-500.0,7.718e-05,2]
[406852517,1772235032538,-500.0,7.718e-05,2]
[406852518,1772235032547,-500.0,7.718e-05,2]
[406852519,1772235032557,-150.0,7.718e-05,2]
[406852520,1772235032566,-500.0,7.718e-05,2]
[406852521,1772235032575,-126686.87347385,7.719e-05,2]
[406852522,1772235032587,-87466.8732234,7.719e-05,2]
[406852523,1772235032598,-15502.43455934,7.719e-05,2]
[406852524,1772235032610,-410.19589604,7.719e-05,2]
[406852531,1772235037778,-1605.0,7.719e-05,2]
[406852533,1772235037789,-1739868.62284737,7.719e-05,2]
[406852534,1772235037798,-1017.29605492,7.8e-05,2]
[406852535,1772235037808,-975.17067426,7.8e-05,2]
[406852536,1772235037817,-900.0,7.8e-05,2]
[406852537,1772235037826,-174.54770032,7.817e-05,2]
[406852538,1772235037835,-586.13,7.818e-05,2]
[406852539,1772235037844,-1800.0,7.9e-05,2]
[406852540,1772235037853,-1112.38910811,7.919e-05,2]
[406852541,1772235037862,-1500.0,7.995e-05,2]
[406852542,1772235037870,-1852.42,7.999e-05,2]
[406852543,1772235037880,-2800.0,8e-05,2]
[406852544,1772235037889,-467.79640327,8.021e-05,2]
[406852545,1772235037899,-1034.0,8.025e-05,2]
[406852546,1772235037908,-528.38,8.05e-05,2]
[406852547,1772235037917,-10067.01,8.05e-05,2]
[406852548,1772235037927,-457.0,8.063e-05,2]
[406852549,1772235037936,-258.0,8.071e-05,2]
[406852550,1772235037945,-586.13,8.092e-05,2]
[406852551,1772235037954,-304.0,8.138e-05,2]
[406852552,1772235037962,-187.0,8.154e-05,2]
[406852553,1772235037971,-4350.01,8.178e-05,2]
[406852554,1772235037980,-500.0,8.219e-05,2]
[406852555,1772235037989,-593.54374773,8.219e-05,2]
[406852556,1772235037998,-340.602727,8.219e-05,2]
[406852557,1772235038007,-500.0,8.219e-05,2]
[406852558,1772235038016,-182.0,8.243e-05,2]
[406852559,1772235038025,-403.0,8.26e-05,2]
[406852560,1772235038034,-1561.0,8.268e-05,2]
[406852561,1772235038042,-532.0,8.284e-05,2]
[406852562,1772235038051,-2183.91,8.302e-05,2]
[406852563,1772235038060,-1363.0,8.347e-05,2]
[406852564,1772235038069,-500.0,8.352e-05,2]
[406852565,1772235038078,-586.13,8.365e-05,2]
[406852566,1772235038087,-3341.96323682,8.385e-05,2]
[406852567,1772235038095,-195.0,8.428e-05,2]
[406852568,1772235038104,-195.0,8.428e-05,2]
[406852569,1772235038113,-195.0,8.428e-05,2]
[406852570,1772235038122,-195.0,8.428e-05,2]
[406852571,1772235038131,-163.99,8.428e-05,2]
[406852572,1772235038140,-250.0,8.468e-05,2]
[406852573,1772235038148,-1680.0,8.488e-05,2]
[406852574,1772235038157,-255.0,8.488e-05,2]
[406852575,1772235038166,-420.0,8.488e-05,2]
[406852576,1772235038175,-250.0,8.49e-05,2]
[406852577,1772235038184,-500.0,8.493e-05,2]
[406852578,1772235038193,-150.0,8.562e-05,2]
[406852579,1772235038202,-150.0,8.562e-05,2]
[406852580,1772235038211,-150.0,8.562e-05,2]
[406852581,1772235038220,-150.0,8.562e-05,2]
[406852582,1772235038229,-151.43177859,8.562e-05,2]
[406852583,1772235038238,-150.0,8.562e-05,2]
[406852584,1772235038247,-150.0,8.562e-05,2]
[406852585,1772235038259,-150.0,8.562e-05,2]
[406852586,1772235038268,-190.81952823,8.562e-05,2]
[406852587,1772235038277,-162.43895648,8.562e-05,2]
[406852588,1772235038286,-150.0,8.562e-05,2]
[406852589,1772235038295,-150.0,8.562e-05,2]
[406852590,1772235038303,-150.0,8.562e-05,2]
[406852591,1772235038312,-150.0,8.562e-05,2]
[406852592,1772235038322,-150.0,8.562e-05,2]
[406852593,1772235038331,-150.0,8.617e-05,2]
[406852594,1772235038339,-150.0,8.617e-05,2]
[406852595,1772235038348,-586.13,8.639e-05,2]
[406852596,1772235038357,-150.0,8.672e-05,2]
[406852597,1772235038366,-500.0,8.673e-05,2]
[406852598,1772235038375,-163.07132872,8.673e-05,2]
[406852599,1772235038383,-500.0,8.673e-05,2]
[406852600,1772235038392,-226.36271147,8.673e-05,2]
[406852601,1772235038401,-501.75629018,8.673e-05,2]
[406852602,1772235038411,-500.0,8.673e-05,2]
[406852603,1772235038420,-500.0,8.673e-05,2]
[406852604,1772235038429,-500.0,8.673e-05,2]
[406852605,1772235038438,-500.0,8.673e-05,2]
[406852606,1772235038447,-500.0,8.673e-05,2]
[406852607,1772235038456,-455.66842206,8.673e-05,2]
[406852609,1772235038465,-500.0,8.673e-05,2]
[406852611,1772235038474,-501.02670572,8.673e-05,2]
[406852613,1772235038483,-500.0,8.673e-05,2]
[406852615,1772235038493,-500.99420847,8.673e-05,2]
[406852616,1772235038502,-500.0,8.673e-05,2]
[406852618,1772235038511,-500.0,8.673e-05,2]
[406852619,1772235038520,-500.0,8.673e-05,2]
[406852621,1772235038529,-500.0,8.673e-05,2]
[406852622,1772235038538,-500.0,8.673e-05,2]
[406852624,1772235038547,-500.0,8.673e-05,2]
[406852625,1772235038556,-500.0,8.673e-05,2]
[406852627,1772235038565,-500.0,8.767e-05,2]
[406852628,1772235038575,-150.99,8.864e-05,2]
[406852630,1772235038584,-999.99,8.864e-05,2]
[406852631,1772235038593,-299.99,8.864e-05,2]
[406852633,1772235038602,-9999.99,8.864e-05,2]
[406852634,1772235038612,-9999.99,8.864e-05,2]
[406852636,1772235038620,-586.13,8.913e-05,2]
[406852638,1772235038630,-227.216587,9.028e-05,2]
[406852639,1772235038639,-500.0,9.041e-05,2]
[406852641,1772235038648,-586.1537247,9.187e-05,2]
[406852642,1772235038657,-1088.21122201,9.221e-05,2]
[406852644,1772235038666,-1000.0,9.221e-05,2]
[406852645,1772235038675,-1000.0,9.221e-05,2]
[406852647,1772235038683,-307.71196301,9.221e-05,2]
[406852648,1772235038692,-1000.0,9.221e-05,2]
[406852650,1772235038703,-500.0,9.221e-05,2]
[406852652,1772235038712,-500.0,9.221e-05,2]
[406852653,1772235038721,-1000.0,9.221e-05,2]
[406852655,1772235038731,-1000.0,9.221e-05,2]
[406852656,1772235038740,-700.09788063,9.221e-05,2]
[406852658,1772235038749,-1000.0,9.221e-05,2]
[406852660,1772235038758,-1000.0,9.221e-05,2]
[406852661,1772235038767,-501.82753949,9.221e-05,2]
[406852662,1772235038776,-500.0,9.315e-05,2]
[406852663,1772235038785,-2351.0,9.337e-05,2]
[406852665,1772235038794,-433.0,9.337e-05,2]
[406852666,1772235038803,-587.0,9.337e-05,2]
[406852668,1772235038813,-500.0,9.589e-05,2]
[406852669,1772235038822,-1532.01941831,9.768e-05,2]
[406852671,1772235038831,-1502.07392204,9.768e-05,2]
[406852672,1772235038840,-1606.66674669,9.768e-05,2]
[406852674,1772235038849,-1500.0,9.768e-05,2]
[406852675,1772235038858,-1500.0,9.768e-05,2]
[406852677,1772235038867,-1500.0,9.768e-05,2]
[406852678,1772235038876,-849.73752759,9.768e-05,2]
[406852680,1772235038885,-500.0,9.863e-05,2]
[406852681,1772235038894,-1417.42,9.9e-05,2]
[406852683,1772235038903,-726.03500525,0.0001,2]
[406852684,1772235038912,-726.03500525,0.0001,2]
[406852686,1772235038921,-726.03500525,0.0001,2]
[406852688,1772235038930,-151.0,0.0001,2]
[406852689,1772235038939,-151.0,0.0001,2]
[406852691,1772235038947,-151.0,0.0001,2]
[406852692,1772235038956,-151.0,0.0001,2]
[406852694,1772235038966,-151.0,0.0001,2]
[406852696,1772235038975,-151.0,0.0001,2]
[406852697,1772235038984,-151.0,0.0001,2]
[406852699,1772235038994,-151.0,0.0001,2]
[406852700,1772235039003,-151.0,0.0001,2]
[406852702,1772235039011,-151.0,0.0001,2]
[406852703,1772235039021,-151.0,0.0001,2]
[406852705,1772235039030,-151.0,0.0001,2]
[406852706,1772235039039,-208.0,0.0001,2]
[406852708,1772235039048,-151.0,0.0001,2]
[406852710,1772235039057,-151.0,0.0001,2]
[406852711,1772235039065,-151.0,0.0001,2]
[406852713,1772235039074,-151.0,0.0001,2]
[406852715,1772235039083,-151.0,0.0001,2]
[406852716,1772235039092,-151.0,0.0001,2]
[406852718,1772235039101,-151.0,0.0001,2]
[406852719,1772235039110,-151.0,0.0001,2]
[406852721,1772235039119,-151.0,0.0001,2]
[406852723,1772235039129,-151.0,0.0001,2]
[406852724,1772235039138,-151.0,0.0001,2]
[406852726,1772235039147,-151.0,0.0001,2]
[406852728,1772235039156,-151.0,0.0001,2]
[406852729,1772235039166,-151.0,0.0001,2]
[406852731,1772235039175,-151.0,0.0001,2]
[406852733,1772235039185,-151.0,0.0001,2]
[406852734,1772235039194,-151.0,0.0001,2]
[406852736,1772235039203,-151.0,0.0001,2]
[406852738,1772235039212,-151.0,0.0001,2]
[406852739,1772235039221,-151.0,0.0001,2]
[406852741,1772235039230,-1053.03002661,0.0001,2]
[406852742,1772235039239,-337.0,0.0001,2]
[406852744,1772235039249,-337.0,0.0001,2]
[406852746,1772235039261,-338.83518363,0.0001,2]
[406852747,1772235039270,-2026.47664966,0.0001,2]
[406852749,1772235039279,-4000.0,0.00010027,2]
[406852750,1772235039288,-500.0,0.00010137,2]
[406852752,1772235039299,-250.0,0.00010195,2]
[406852754,1772235039308,-246.14,0.00010236,2]
[406852755,1772235039318,-3292.0,0.00010271,2]
[406852756,1772235039327,-736.0,0.00010271,2]
[406852758,1772235039337,-162.0,0.00010271,2]
[406852759,1772235039345,-4000.0,0.00010278,2]
[406852761,1772235039355,-500.0,0.000103,2]
[406852763,1772235039364,-500.0,0.000103,2]
[406852764,1772235039374,-500.0,0.000103,2]
[406852766,1772235039383,-500.0,0.000103,2]
[406852768,1772235039392,-500.0,0.000103,2]
[406852769,1772235039401,-500.0,0.000103,2]
[406852771,1772235039410,-500.0,0.000103,2]
[406852773,1772235039419,-500.0,0.000103,2]
[406852774,1772235039428,-500.0,0.000103,2]
[406852776,1772235039437,-500.0,0.000103,2]
[406852777,1772235039446,-500.0,0.000103,2]
[406852779,1772235039455,-500.0,0.000103,2]
[406852780,1772235039464,-500.0,0.000103,2]
[406852781,1772235039473,-500.0,0.000103,2]
[406852782,1772235039482,-500.0,0.000103,2]
[406852783,1772235039491,-500.0,0.000103,2]
[406852784,1772235039500,-500.0,0.000103,2]
[406852785,1772235039510,-500.0,0.000103,2]
[406852786,1772235039519,-500.0,0.000103,2]
[406852787,1772235039528,-500.0,0.000103,2]
[406852788,1772235039539,-500.0,0.000103,2]
[406852789,1772235039548,-500.0,0.000103,2]
[406852790,1772235039558,-733.85983574,0.000103,2]
[406852791,1772235039567,-500.0,0.000103,2]
[406852792,1772235039577,-500.0,0.000103,2]
[406852793,1772235039586,-500.0,0.000103,2]
[406852794,1772235039596,-500.0,0.000103,2]
[406852795,1772235039605,-500.0,0.000103,2]
[406852797,1772235039614,-500.0,0.000103,2]
[406852798,1772235039624,-500.0,0.000103,2]
[406852800,1772235039633,-500.0,0.000103,2]
[406852801,1772235039643,-500.0,0.000103,2]
[406852802,1772235039653,-500.0,0.000103,2]
[406852803,1772235039662,-500.0,0.000103,2]
[406852804,1772235039672,-500.0,0.000103,2]
[406852805,1772235039681,-500.0,0.000103,2]
[406852806,1772235039690,-500.0,0.000103,2]
[406852807,1772235039700,-500.0,0.000103,2]
[406852808,1772235039709,-500.0,0.000103,2]
[406852809,1772235039719,-500.0,0.000103,2]
[406852810,1772235039728,-500.0,0.000103,2]
[406852811,1772235039738,-500.0,0.000103,2]
[406852812,1772235039747,-700.0,0.000103,2]
[406852813,1772235039758,-700.0,0.000103,2]
[406852814,1772235039767,-500.0,0.000103,2]
[406852815,1772235039777,-700.0,0.000103,2]
[406852816,1772235039787,-500.0,0.000103,2]
[406852817,1772235039796,-700.0,0.000103,2]
[406852818,1772235039805,-500.0,0.000103,2]
[406852819,1772235039815,-700.0,0.000103,2]
[406852820,1772235039825,-700.0,0.000103,2]
[406852821,1772235039835,-500.0,0.000103,2]
[406852822,1772235039844,-700.0,0.000103,2]
[406852824,1772235039853,-500.0,0.000103,2]
[406852825,1772235039862,-700.0,0.000103,2]
[406852826,1772235039871,-772.09647596,0.000103,2]
[406852827,1772235039881,-700.0,0.000103,2]
[406852828,1772235039890,-700.0,0.000103,2]
[406852829,1772235039900,-700.0,0.000103,2]
[406852830,1772235039909,-700.0,0.000103,2]
[406852831,1772235039919,-1182.2506885,0.000103,2]
[406852832,1772235039929,-500.0,0.000103,2]
[406852833,1772235039938,-500.0,0.000103,2]
[406852834,1772235039947,-500.0,0.000103,2]
[406852835,1772235039957,-500.0,0.000103,2]
[406852836,1772235039965,-500.0,0.000103,2]
[406852837,1772235039975,-727.93200895,0.000103,2]
[406852838,1772235039984,-2000.0,0.00010316,2]
[406852839,1772235039993,-2000.0,0.00010316,2]
[406852840,1772235040002,-2000.0,0.00010316,2]
[406852841,1772235040011,-500.0,0.00010411,2]
[406852842,1772235040021,-4000.0,0.00010529,2]
[406852843,1772235040030,-1848.44,0.00010568,2]
[406852844,1772235040040,-4000.0,0.00010779,2]
[406852845,1772235040049,-2500.0,0.00010864,2]
[406852846,1772235040059,-2500.0,0.00010864,2]
[406852847,1772235040068,-2538.79789299,0.000109,2]
[406852848,1772235040078,-2538.79789295,0.000109,2]
[406852849,1772235040087,-2538.79789295,0.000109,2]
[406852850,1772235040096,-150.0,0.00010959,2]
[406852851,1772235040106,-19307.45,0.00010959,2]
[406852852,1772235040115,-4000.0,0.0001103,2]
[406852853,1772235040125,-28057.84474414,0.00011099,2]
[406852854,1772235040135,-28057.84474408,0.00011099,2]
[406852855,1772235040145,-28057.84474408,0.00011099,2]
[406852856,1772235040154,-28057.84474408,0.00011099,2]
[406852857,1772235040164,-2061.97789443,0.00011099,2]
[406852858,1772235040173,-2061.97789442,0.00011099,2]
[406852859,1772235040183,-2061.97789442,0.00011099,2]
[406852860,1772235040192,-2061.97789442,0.00011113,2]
[406852861,1772235040202,-272.659905,0.00011285,2]
[406852862,1772235040211,-1031.0,0.00011297,2]
[406852863,1772235040220,-1729.0,0.00011298,2]
[406852864,1772235040229,-195.363008,0.000114,2]
[406852865,1772235040379,-2078.83396,0.000114,2]
[406852866,1772235040390,-1115.41784141,0.00011412,2]
[406852867,1772235040400,-2556.86146722,0.00011412,2]
[406852868,1772235040409,-1528.91,0.00011507,2]
[406852869,1772235040419,-2538.79789295,0.00012048,2]
[406852870,1772235040430,-500.0,0.0001207,2]
[406852871,1772235040439,-500.0,0.0001207,2]
[406852872,1772235040449,-503.55340373,0.0001207,2]
[406852873,1772235040459,-500.0,0.0001207,2]
[406852874,1772235040469,-500.0,0.0001207,2]
[406852875,1772235040478,-500.0,0.0001207,2]
[406852876,1772235040487,-500.0,0.0001207,2]
[406852877,1772235040497,-500.0,0.0001207,2]
[406852878,1772235040506,-500.0,0.0001207,2]
[406852879,1772235040516,-500.0,0.0001207,2]
[406852880,1772235040526,-500.0,0.0001207,2]
[406852881,1772235040535,-500.0,0.0001207,2]
[406852882,1772235040546,-500.0,0.0001207,2]
[406852883,1772235040556,-500.0,0.0001207,2]
[406852884,1772235040565,-500.0,0.0001207,2]
[406852885,1772235040575,-500.0,0.0001207,2]
[406852886,1772235040584,-856.03124545,0.0001207,2]
[406852887,1772235040593,-500.0,0.0001207,2]
[406852888,1772235040603,-500.0,0.0001207,2]
[406852889,1772235040612,-500.0,0.0001207,2]
[406852890,1772235040622,-500.0,0.0001207,2]
[406852892,1772235040633,-500.0,0.0001207,2]
[406852893,1772235040643,-500.0,0.0001207,2]
[406852894,1772235040652,-500.0,0.0001207,2]
[406852895,1772235040662,-500.0,0.0001207,2]
[406852896,1772235040671,-500.0,0.0001207,2]
[406852897,1772235040680,-500.0,0.0001207,2]
[406852898,1772235040690,-500.0,0.0001207,2]
[406852899,1772235040699,-500.0,0.0001207,2]
[406852900,1772235040708,-500.0,0.0001207,2]
[406852901,1772235040718,-500.0,0.0001207,2]
[406852902,1772235040727,-500.0,0.0001207,2]
[406852903,1772235040736,-670.0,0.0001207,2]
[406852904,1772235040746,-500.0,0.0001207,2]
[406852905,1772235040755,-500.0,0.0001207,2]
[406852906,1772235040764,-500.0,0.0001207,2]
[406852907,1772235040773,-500.0,0.0001207,2]
[406852908,1772235040784,-500.0,0.0001207,2]
[406852909,1772235040793,-500.0,0.0001207,2]
[406852911,1772235040805,-500.0,0.0001207,2]
[406852912,1772235040814,-500.0,0.0001207,2]
[406852913,1772235040823,-500.0,0.0001207,2]
[406852914,1772235040832,-500.0,0.0001207,2]
[406852915,1772235040843,-500.0,0.0001207,2]
[406852916,1772235040858,-500.0,0.0001207,2]
[406852917,1772235040868,-500.0,0.0001207,2]
[406852918,1772235040879,-500.0,0.0001207,2]
[406852919,1772235040887,-500.0,0.0001207,2]
[406852920,1772235040897,-500.0,0.0001207,2]
[406852921,1772235040906,-500.0,0.0001207,2]
[406852922,1772235040915,-500.0,0.0001207,2]
[406852923,1772235040925,-500.0,0.0001207,2]
[406852924,1772235040934,-500.0,0.0001207,2]
[406852925,1772235040943,-500.0,0.0001207,2]
[406852926,1772235040952,-500.0,0.0001207,2]
[406852927,1772235040961,-500.0,0.0001207,2]
[406852928,1772235040970,-700.0,0.0001207,2]
[406852929,1772235040980,-700.0,0.0001207,2]
[406852930,1772235040989,-700.0,0.0001207,2]
[406852931,1772235040999,-700.0,0.0001207,2]
[406852932,1772235041008,-500.0,0.0001207,2]
[406852933,1772235041019,-700.0,0.0001207,2]
[406852934,1772235041028,-700.0,0.0001207,2]
[406852935,1772235041039,-700.0,0.0001207,2]
[406852936,1772235041049,-700.0,0.0001207,2]
[406852937,1772235041059,-700.0,0.0001207,2]
[406852938,1772235041069,-500.0,0.0001207,2]
[406852939,1772235041079,-700.0,0.0001207,2]
[406852940,1772235041088,-500.0,0.0001207,2]
[406852941,1772235041098,-700.0,0.0001207,2]
[406852942,1772235041109,-500.0,0.0001207,2]
[406852943,1772235041119,-700.0,0.0001207,2]
[406852944,1772235041130,-500.0,0.0001207,2]
[406852945,1772235041139,-500.0,0.0001207,2]
[406852946,1772235041148,-700.0,0.0001207,2]
[406852947,1772235041157,-500.0,0.0001207,2]
[406852948,1772235041166,-152.3342834,0.0001207,2]
[406852949,1772235041175,-500.0,0.0001207,2]
[406852950,1772235041185,-500.0,0.0001207,2]
[406852951,1772235041193,-500.0,0.0001207,2]
[406852952,1772235041203,-500.0,0.0001207,2]
[406852953,1772235041212,-500.0,0.0001207,2]
[406852954,1772235041221,-500.0,0.0001207,2]
[406852955,1772235041230,-28057.84474408,0.00012211,2]
[406852956,1772235041239,-2061.97789442,0.00012244,2]
[406852957,1772235041249,-28057.84474408,0.00013348,2]
[406852958,1772235041261,-2061.97789442,0.00013376,2]
[406852959,1772235041270,-3240.0,0.00013425,2]
[406852960,1772235041279,-2538.79789295,0.00013511,2]
[406852961,1772235041288,-552.35590587,0.00013599,2]
[406852962,1772235041298,-500.0,0.00013698,2]
[406852963,1772235041307,-500.0,0.00013698,2]
[406852964,1772235041316,-500.0,0.00013698,2]
[406852965,1772235041325,-500.0,0.00013698,2]
[406852966,1772235041335,-500.0,0.00013698,2]
[406852967,1772235041345,-500.0,0.00013698,2]
[406852968,1772235041354,-500.0,0.00013698,2]
[406852969,1772235041363,-500.0,0.00013698,2]
[406852970,1772235041372,-500.0,0.00013698,2]
[406852971,1772235041381,-500.0,0.00013698,2]
[406852972,1772235041391,-269.57915282,0.00013698,2]
[406852973,1772235041400,-500.0,0.00013698,2]
[406852974,1772235041409,-500.0,0.00013698,2]
[406852975,1772235041418,-467.36158262,0.00013698,2]
[406852976,1772235041427,-500.0,0.00013698,2]
[406852977,1772235041437,-500.0,0.00013698,2]
[406852978,1772235041446,-500.0,0.00013698,2]
[406852979,1772235041455,-500.0,0.00013698,2]
[406852980,1772235041464,-500.0,0.00013698,2]
[406852981,1772235041473,-500.0,0.00013698,2]
[406852982,1772235041482,-500.0,0.00013698,2]
[406852983,1772235041491,-500.0,0.00013698,2]
[406852984,1772235041500,-500.0,0.00013698,2]
[406852985,1772235041509,-500.0,0.00013698,2]
[406852986,1772235041519,-622.52528036,0.00013698,2]
[406852987,1772235041528,-500.0,0.00013698,2]
[406852988,1772235041537,-500.0,0.00013698,2]
[406852989,1772235041546,-500.0,0.00013698,2]
[406852990,1772235041556,-500.0,0.00013698,2]
[406852991,1772235041565,-500.0,0.00013698,2]
[406852992,1772235041574,-500.0,0.00013698,2]
[406852993,1772235041585,-500.0,0.00013698,2]
[406852994,1772235041594,-500.0,0.00013698,2]
[406852995,1772235041603,-523.439675,0.00013698,2]
[406852996,1772235041613,-750.0,0.00013698,2]
[406852997,1772235041622,-750.0,0.00013698,2]
[406852998,1772235041631,-750.0,0.00013698,2]
[406852999,1772235041641,-750.0,0.00013698,2]
[406853000,1772235041650,-750.0,0.00013698,2]
[406853001,1772235041659,-750.0,0.00013698,2]
[406853002,1772235041668,-750.0,0.00013698,2]
[406853003,1772235041677,-750.0,0.00013698,2]
[406853004,1772235041686,-750.0,0.00013698,2]
[406853005,1772235041695,-500.0,0.00013698,2]
[406853006,1772235041704,-500.0,0.00013698,2]
[406853007,1772235041714,-500.0,0.00013698,2]
[406853008,1772235041723,-500.0,0.00013698,2]
[406853009,1772235041732,-500.0,0.00013698,2]
[406853010,1772235041741,-500.0,0.00013698,2]
[406853011,1772235041750,-500.0,0.00013698,2]
[406853012,1772235041760,-500.0,0.00013698,2]
[406853013,1772235041769,-500.0,0.00013698,2]
[406853014,1772235041778,-327.3904498,0.00013698,2]
[406853015,1772235041787,-500.0,0.00013698,2]
[406853016,1772235041796,-500.0,0.00013698,2]
[406853017,1772235041805,-500.0,0.00013698,2]
[406853018,1772235041814,-500.0,0.00013698,2]
[406853019,1772235041823,-500.0,0.00013698,2]
[406853020,1772235041831,-500.0,0.00013698,2]
[406853021,1772235041840,-500.0,0.00013698,2]
[406853022,1772235041849,-500.0,0.00013698,2]
[406853023,1772235041858,-500.0,0.00013698,2]
[406853024,1772235041868,-500.0,0.00013698,2]
[406853025,1772235041878,-516.39770794,0.00013698,2]
[406853026,1772235041887,-500.0,0.00013698,2]
[406853027,1772235041898,-500.0,0.00013698,2]
[406853028,1772235041907,-500.0,0.00013698,2]
[406853029,1772235041916,-500.0,0.00013698,2]
[406853030,1772235041925,-500.0,0.00013698,2]